[Event "Early-Titled-Tuesday-Blitz-December-26-2023"]
[Site "Chess.com"]
[Date "2023.12.26"]
[Round "2"]
[White "Kleyton_Lima"]
[Black "sokidze"]
[Result "1-0"]
[WhiteElo "2574"]
[BlackElo "2773"]
[TimeControl "180+1"]
[EndTime "8:16:57 PST"]
[Termination "Kleyton_Lima won on time"]

1. e4 {[%clk 0:03:00.9]} 1... c6 {[%clk 0:02:59.4]} 2. d4 {[%clk 0:03:00.7]}
2... d5 {[%clk 0:02:59]} 3. e5 {[%clk 0:03:01.3]} 3... Bf5 {[%clk 0:02:58.5]} 4.
h4 {[%clk 0:02:59.1]} 4... h5 {[%clk 0:02:57.9]} 5. Bd3 {[%clk 0:02:55.9]} 5...
Bxd3 {[%clk 0:02:57.8]} 6. Qxd3 {[%clk 0:02:56.8]} 6... Qa5+ {[%clk 0:02:57.8]}
7. Nd2 {[%clk 0:02:56.3]} 7... e6 {[%clk 0:02:57.7]} 8. Nf3 {[%clk 0:02:52]}
8... Nh6 {[%clk 0:02:54.7]} 9. O-O {[%clk 0:02:47.1]} 9... Nf5 {[%clk
0:02:53.8]} 10. Nb3 {[%clk 0:02:47.8]} 10... Qb5 {[%clk 0:02:51.9]} 11. Qd1
{[%clk 0:02:48.4]} 11... c5 {[%clk 0:02:51.6]} 12. a4 {[%clk 0:02:41.3]} 12...
Qb6 {[%clk 0:02:51.6]} 13. dxc5 {[%clk 0:02:40.3]} 13... Bxc5 {[%clk 0:02:51.5]}
14. Nxc5 {[%clk 0:02:41.2]} 14... Qxc5 {[%clk 0:02:51.7]} 15. c3 {[%clk
0:02:42.1]} 15... Nc6 {[%clk 0:02:43.4]} 16. Re1 {[%clk 0:02:41.8]} 16... Rc8
{[%clk 0:02:39.8]} 17. Bg5 {[%clk 0:02:20.7]} 17... O-O {[%clk 0:02:16.9]} 18.
Nd2 {[%clk 0:02:20.2]} 18... d4 {[%clk 0:01:37.8]} 19. Ne4 {[%clk 0:02:10.4]}
19... Qd5 {[%clk 0:01:34]} 20. Qxh5 {[%clk 0:02:06.5]} 20... Nxe5 {[%clk
0:01:33.3]} 21. g4 {[%clk 0:01:29.6]} 21... f6 {[%clk 0:00:59.3]} 22. gxf5
{[%clk 0:01:06.1]} 22... exf5 {[%clk 0:00:59.1]} 23. Bxf6 {[%clk 0:01:00.5]}
23... gxf6 {[%clk 0:00:53.6]} 24. Qxf5 {[%clk 0:00:58.4]} 24... Rc7 {[%clk
0:00:24.1]} 25. Kh2 {[%clk 0:00:54.2]} 25... Rg7 {[%clk 0:00:21.6]} 26. f3
{[%clk 0:00:46.8]} 26... dxc3 {[%clk 0:00:10.2]} 27. bxc3 {[%clk 0:00:47.7]}
27... Qd3 {[%clk 0:00:05.7]} 28. Rf1 {[%clk 0:00:43.9]} 28... Qe2+ {[%clk
0:00:01.4]} 29. Rf2 {[%clk 0:00:40]} 29... Qa6 {[%clk 0:00:01.1]} 30. Rd1 {[%clk
0:00:30.5]} 30... Qc6 {[%clk 0:00:01.1]} 31. Rd6 {[%clk 0:00:28.6]} 31... Qc7
{[%clk 0:00:01.5]} 32. Nxf6+ {[%clk 0:00:25.8]} 32... Rxf6 {[%clk 0:00:01.9]}
33. Qxf6 {[%clk 0:00:26.7]} 33... Rg6 {[%clk 0:00:01.5]} 34. Rd8+ {[%clk
0:00:24.5]} 1-0

[Event "Early-Titled-Tuesday-Blitz-December-26-2023"]
[Site "Chess.com"]
[Date "2023.12.26"]
[Round "2"]
[White "BigAl"]
[Black "nitpicker"]
[Result "0-1"]
[WhiteElo "2531"]
[BlackElo "2315"]
[TimeControl "180+1"]
[EndTime "8:16:58 PST"]
[Termination "nitpicker won on time"]

1. e4 {[%clk 0:02:56.2]} 1... c5 {[%clk 0:02:59.6]} 2. Nc3 {[%clk 0:02:56.2]}
2... a6 {[%clk 0:02:57.3]} 3. g3 {[%clk 0:02:56.2]} 3... b5 {[%clk 0:02:55.8]}
4. Bg2 {[%clk 0:02:57.1]} 4... Bb7 {[%clk 0:02:56]} 5. d3 {[%clk 0:02:57.9]}
5... e6 {[%clk 0:02:55.6]} 6. Nf3 {[%clk 0:02:58.6]} 6... d6 {[%clk 0:02:50]} 7.
O-O {[%clk 0:02:58.9]} 7... Nf6 {[%clk 0:02:49.1]} 8. Re1 {[%clk 0:02:58.4]}
8... Qc7 {[%clk 0:02:47.7]} 9. a4 {[%clk 0:02:55.9]} 9... b4 {[%clk 0:02:46.8]}
10. Nb1 {[%clk 0:02:56.6]} 10... Be7 {[%clk 0:02:44.7]} 11. Nbd2 {[%clk
0:02:56.2]} 11... Nc6 {[%clk 0:02:43.5]} 12. Nc4 {[%clk 0:02:54.3]} 12... a5
{[%clk 0:02:38.9]} 13. Bf4 {[%clk 0:02:53.6]} 13... Nd7 {[%clk 0:02:27.5]} 14.
c3 {[%clk 0:02:48.7]} 14... O-O {[%clk 0:02:25.9]} 15. d4 {[%clk 0:02:44.1]}
15... bxc3 {[%clk 0:02:19.7]} 16. bxc3 {[%clk 0:02:22.6]} 16... cxd4 {[%clk
0:02:19.5]} 17. cxd4 {[%clk 0:02:22.3]} 17... e5 {[%clk 0:01:43.1]} 18. Be3
{[%clk 0:01:37.4]} 18... Nxd4 {[%clk 0:01:39.4]} 19. Rc1 {[%clk 0:01:11.3]}
19... Nxf3+ {[%clk 0:01:31.4]} 20. Bxf3 {[%clk 0:01:10.8]} 20... Nc5 {[%clk
0:01:28.2]} 21. Bxc5 {[%clk 0:01:00.3]} 21... dxc5 {[%clk 0:01:05.5]} 22. Rb1
{[%clk 0:01:00]} 22... Rfd8 {[%clk 0:00:55.3]} 23. Qb3 {[%clk 0:00:52.1]} 23...
Bc6 {[%clk 0:00:54.9]} 24. Ne3 {[%clk 0:00:45.5]} 24... Rab8 {[%clk 0:00:51.1]}
25. Qa2 {[%clk 0:00:42.7]} 25... Rb4 {[%clk 0:00:47.3]} 26. Rxb4 {[%clk
0:00:29.1]} 26... cxb4 {[%clk 0:00:39]} 27. Rc1 {[%clk 0:00:27.1]} 27... Qb7
{[%clk 0:00:37.1]} 28. Qc4 {[%clk 0:00:25.9]} 28... Bxa4 {[%clk 0:00:35]} 29.
Nf5 {[%clk 0:00:24]} 29... Bf8 {[%clk 0:00:32.7]} 30. h4 {[%clk 0:00:17.9]}
30... Bb5 {[%clk 0:00:32.8]} 31. Qa2 {[%clk 0:00:16.2]} 31... a4 {[%clk
0:00:32.5]} 32. h5 {[%clk 0:00:13.3]} 32... b3 {[%clk 0:00:32.4]} 33. Qb2 {[%clk
0:00:12.4]} 33... Bd7 {[%clk 0:00:31.6]} 34. Rd1 {[%clk 0:00:10.2]} 34... Ra8
{[%clk 0:00:25.2]} 35. Qd2 {[%clk 0:00:01.8]} 35... Bxf5 {[%clk 0:00:24.4]} 0-1

[Event "Early-Titled-Tuesday-Blitz-December-26-2023"]
[Site "Chess.com"]
[Date "2023.12.26"]
[Round "2"]
[White "GMJustin"]
[Black "SARGISMV"]
[Result "0-1"]
[WhiteElo "2246"]
[BlackElo "2519"]
[TimeControl "180+1"]
[EndTime "8:16:58 PST"]
[Termination "SARGISMV won on time"]

1. e4 {[%clk 0:02:37.4]} 1... e6 {[%clk 0:02:57.9]} 2. d4 {[%clk 0:02:35.9]}
2... d5 {[%clk 0:02:47]} 3. Nc3 {[%clk 0:02:34.8]} 3... Bb4 {[%clk 0:02:43.7]}
4. Bd3 {[%clk 0:02:24.3]} 4... dxe4 {[%clk 0:02:26.9]} 5. Bxe4 {[%clk
0:02:24.2]} 5... Nf6 {[%clk 0:02:26.5]} 6. Bf3 {[%clk 0:02:14.8]} 6... c5 {[%clk
0:02:24.4]} 7. Ne2 {[%clk 0:02:12.9]} 7... Nc6 {[%clk 0:02:18.9]} 8. Be3 {[%clk
0:01:59.7]} 8... cxd4 {[%clk 0:01:44.7]} 9. Nxd4 {[%clk 0:01:57.8]} 9... Bxc3+
{[%clk 0:01:37.2]} 10. bxc3 {[%clk 0:01:57.2]} 10... Bd7 {[%clk 0:01:37.4]} 11.
Nxc6 {[%clk 0:01:39.5]} 11... Bxc6 {[%clk 0:01:31.3]} 12. Bxc6+ {[%clk
0:01:38.1]} 12... bxc6 {[%clk 0:01:29.8]} 13. Qxd8+ {[%clk 0:01:38.6]} 13...
Kxd8 {[%clk 0:01:27.8]} 14. Ke2 {[%clk 0:01:36.1]} 14... e5 {[%clk 0:01:23.4]}
15. Rhd1+ {[%clk 0:01:33.6]} 15... Kc7 {[%clk 0:01:20.6]} 16. c4 {[%clk
0:01:26.5]} 16... Ne4 {[%clk 0:01:16]} 17. Rd3 {[%clk 0:01:19.8]} 17... Nd6
{[%clk 0:01:13.2]} 18. Rad1 {[%clk 0:01:13]} 18... Rhd8 {[%clk 0:01:08.3]} 19.
Bc5 {[%clk 0:00:51.7]} 19... Nxc4 {[%clk 0:00:50.5]} 20. Rxd8 {[%clk 0:00:50.8]}
20... Rxd8 {[%clk 0:00:51]} 21. Rxd8 {[%clk 0:00:49.8]} 21... Kxd8 {[%clk
0:00:51.9]} 22. Bxa7 {[%clk 0:00:49.9]} 22... Kc7 {[%clk 0:00:48.2]} 23. Kd3
{[%clk 0:00:45.5]} 23... Nd6 {[%clk 0:00:39.8]} 24. Bc5 {[%clk 0:00:44.5]} 24...
Nb7 {[%clk 0:00:39.1]} 25. Bf8 {[%clk 0:00:44.1]} 25... g6 {[%clk 0:00:39.1]}
26. Ke4 {[%clk 0:00:43.3]} 26... f6 {[%clk 0:00:36.9]} 27. Be7 {[%clk
0:00:33.3]} 27... Nd6+ {[%clk 0:00:29.4]} 28. Bxd6+ {[%clk 0:00:26.2]} 28...
Kxd6 {[%clk 0:00:30.3]} 29. g4 {[%clk 0:00:25.1]} 29... Ke6 {[%clk 0:00:25.3]}
30. a4 {[%clk 0:00:18.3]} 30... f5+ {[%clk 0:00:24.8]} 31. gxf5+ {[%clk
0:00:16.7]} 31... gxf5+ {[%clk 0:00:25.7]} 32. Kd3 {[%clk 0:00:15]} 32... Kd5
{[%clk 0:00:26]} 33. f3 {[%clk 0:00:08.6]} 33... Kc5 {[%clk 0:00:24.3]} 34. c3
{[%clk 0:00:05.9]} 34... Kb6 {[%clk 0:00:18.6]} 35. Kc4 {[%clk 0:00:03.8]} 35...
Ka5 {[%clk 0:00:18.5]} 0-1

[Event "Early-Titled-Tuesday-Blitz-December-26-2023"]
[Site "Chess.com"]
[Date "2023.12.26"]
[Round "2"]
[White "rquery98"]
[Black "DvaHrasta"]
[Result "1-0"]
[WhiteElo "2741"]
[BlackElo "2456"]
[TimeControl "180+1"]
[EndTime "8:17:00 PST"]
[Termination "rquery98 won on time"]

1. Nf3 {[%clk 0:03:00.9]} 1... Nf6 {[%clk 0:02:59.8]} 2. g3 {[%clk 0:03:01.5]}
2... d5 {[%clk 0:02:59.1]} 3. Bg2 {[%clk 0:03:01]} 3... c5 {[%clk 0:02:59.3]} 4.
O-O {[%clk 0:03:00.8]} 4... Nc6 {[%clk 0:02:59.5]} 5. d4 {[%clk 0:03:01.5]} 5...
Bg4 {[%clk 0:02:57.7]} 6. Ne5 {[%clk 0:02:55.4]} 6... cxd4 {[%clk 0:02:56.6]} 7.
Nxg4 {[%clk 0:02:52.9]} 7... Nxg4 {[%clk 0:02:56.7]} 8. e3 {[%clk 0:02:53]} 8...
Nf6 {[%clk 0:02:56.8]} 9. exd4 {[%clk 0:02:52.6]} 9... e6 {[%clk 0:02:57.1]} 10.
c3 {[%clk 0:02:47.1]} 10... Be7 {[%clk 0:02:56.9]} 11. a4 {[%clk 0:02:47.7]}
11... a5 {[%clk 0:02:53.7]} 12. Nd2 {[%clk 0:02:46.1]} 12... O-O {[%clk
0:02:53.4]} 13. Nf3 {[%clk 0:02:44.6]} 13... Ne8 {[%clk 0:02:52.3]} 14. Ne1
{[%clk 0:02:41.1]} 14... Qb6 {[%clk 0:02:45.3]} 15. Nd3 {[%clk 0:02:40.4]} 15...
Nd6 {[%clk 0:02:37.8]} 16. Re1 {[%clk 0:02:40.4]} 16... Rfd8 {[%clk 0:02:31.5]}
17. h4 {[%clk 0:02:39.2]} 17... h6 {[%clk 0:02:29.8]} 18. Qg4 {[%clk 0:02:19.7]}
18... Kf8 {[%clk 0:02:23.8]} 19. Bf3 {[%clk 0:02:15.1]} 19... Nc4 {[%clk
0:02:22.6]} 20. Qh5 {[%clk 0:02:01.5]} 20... Qa6 {[%clk 0:01:55.8]} 21. Nf4
{[%clk 0:01:50]} 21... Bf6 {[%clk 0:01:47.3]} 22. g4 {[%clk 0:01:35.6]} 22...
Bxd4 {[%clk 0:01:21]} 23. cxd4 {[%clk 0:01:27.3]} 23... Nxd4 {[%clk 0:01:21]}
24. Bd1 {[%clk 0:01:26.4]} 24... e5 {[%clk 0:01:16.3]} 25. Ng2 {[%clk
0:01:09.2]} 25... Qg6 {[%clk 0:01:10.3]} 26. Qxg6 {[%clk 0:01:08.7]} 26... fxg6
{[%clk 0:01:11.2]} 27. b3 {[%clk 0:01:08.9]} 27... Nd6 {[%clk 0:00:55.7]} 28.
Rxe5 {[%clk 0:01:03.5]} 28... Ne4 {[%clk 0:00:49.4]} 29. Ba3+ {[%clk 0:00:50.3]}
29... Kg8 {[%clk 0:00:48.7]} 30. Re7 {[%clk 0:00:44.3]} 30... b5 {[%clk
0:00:43]} 31. Bb2 {[%clk 0:00:40.8]} 31... Nc6 {[%clk 0:00:40.4]} 32. Rxg7+
{[%clk 0:00:40.7]} 32... Kf8 {[%clk 0:00:39.9]} 33. f3 {[%clk 0:00:40.7]} 33...
Nd2 {[%clk 0:00:18]} 34. Rxg6 {[%clk 0:00:36.1]} 34... Nb4 {[%clk 0:00:14.8]}
35. Bc3 {[%clk 0:00:29.6]} 35... Nxb3 {[%clk 0:00:10]} 36. Bxb3 {[%clk 0:00:29]}
36... d4 {[%clk 0:00:10.2]} 37. Bxb4+ {[%clk 0:00:26.7]} 37... axb4 {[%clk
0:00:10.3]} 38. Rxh6 {[%clk 0:00:25.8]} 38... bxa4 {[%clk 0:00:08.7]} 39. Rh8+
{[%clk 0:00:24.5]} 39... Ke7 {[%clk 0:00:07]} 40. Rxd8 {[%clk 0:00:25.4]} 1-0

[Event "Early-Titled-Tuesday-Blitz-December-26-2023"]
[Site "Chess.com"]
[Date "2023.12.26"]
[Round "2"]
[White "Mikasinski"]
[Black "drillovsky"]
[Result "1-0"]
[WhiteElo "2644"]
[BlackElo "2366"]
[TimeControl "180+1"]
[EndTime "8:17:03 PST"]
[Termination "Mikasinski won on time"]

1. e4 {[%clk 0:03:00.9]} 1... c5 {[%clk 0:02:55.5]} 2. Nf3 {[%clk 0:03:01]} 2...
e6 {[%clk 0:02:53.1]} 3. d4 {[%clk 0:02:55.7]} 3... cxd4 {[%clk 0:02:53.2]} 4.
Nxd4 {[%clk 0:02:48.9]} 4... Nf6 {[%clk 0:02:53.6]} 5. Nc3 {[%clk 0:02:46.2]}
5... Nc6 {[%clk 0:02:54]} 6. Ndb5 {[%clk 0:02:43.8]} 6... Bb4 {[%clk 0:02:52.2]}
7. a3 {[%clk 0:02:42.3]} 7... Bxc3+ {[%clk 0:02:52]} 8. Nxc3 {[%clk 0:02:43.2]}
8... d5 {[%clk 0:02:51.8]} 9. exd5 {[%clk 0:02:39.9]} 9... exd5 {[%clk
0:02:51.9]} 10. Bd3 {[%clk 0:02:36.1]} 10... O-O {[%clk 0:02:51.5]} 11. O-O
{[%clk 0:02:36.1]} 11... Bg4 {[%clk 0:02:50.4]} 12. f3 {[%clk 0:02:35.9]} 12...
Bh5 {[%clk 0:02:50.4]} 13. Kh1 {[%clk 0:02:29.9]} 13... d4 {[%clk 0:02:24.1]}
14. Ne4 {[%clk 0:02:27.2]} 14... Nxe4 {[%clk 0:02:22.2]} 15. Bxe4 {[%clk
0:02:26]} 15... Bg6 {[%clk 0:02:22.6]} 16. Bxg6 {[%clk 0:02:25.5]} 16... hxg6
{[%clk 0:02:20.5]} 17. b4 {[%clk 0:02:22.1]} 17... Ne7 {[%clk 0:02:01.2]} 18.
Bb2 {[%clk 0:02:19.1]} 18... Nf5 {[%clk 0:01:57.1]} 19. Qd3 {[%clk 0:02:15.2]}
19... Qh4 {[%clk 0:01:34.3]} 20. Kg1 {[%clk 0:02:05.8]} 20... Rfe8 {[%clk
0:01:29]} 21. Bc1 {[%clk 0:02:01.3]} 21... Rac8 {[%clk 0:01:26.9]} 22. Bd2
{[%clk 0:02:00.8]} 22... Ne3 {[%clk 0:01:24.8]} 23. Rfc1 {[%clk 0:01:56.9]}
23... Qg5 {[%clk 0:00:55.5]} 24. g3 {[%clk 0:01:45.1]} 24... Qf5 {[%clk
0:00:54]} 25. Qxf5 {[%clk 0:01:44.3]} 25... gxf5 {[%clk 0:00:44.8]} 26. c3
{[%clk 0:01:41.1]} 26... Nc4 {[%clk 0:00:39.2]} 27. Bf4 {[%clk 0:01:35.1]} 27...
d3 {[%clk 0:00:38.7]} 28. Rd1 {[%clk 0:01:35.1]} 28... Rcd8 {[%clk 0:00:38.1]}
29. Ra2 {[%clk 0:01:35]} 29... f6 {[%clk 0:00:35.1]} 30. h4 {[%clk 0:01:34.6]}
30... Kf7 {[%clk 0:00:32.6]} 31. Kf2 {[%clk 0:01:34.4]} 31... Rg8 {[%clk
0:00:20.7]} 32. a4 {[%clk 0:01:24.8]} 32... g5 {[%clk 0:00:20.2]} 33. hxg5
{[%clk 0:01:23.9]} 33... fxg5 {[%clk 0:00:21.1]} 34. Be3 {[%clk 0:01:24.6]}
34... Rh8 {[%clk 0:00:20.4]} 35. Raa1 {[%clk 0:01:17.8]} 35... Rh2+ {[%clk
0:00:19.8]} 36. Kg1 {[%clk 0:01:18.3]} 36... Re2 {[%clk 0:00:06]} 37. Bd4 {[%clk
0:01:09.2]} 37... f4 {[%clk 0:00:06.3]} 38. Rxd3 {[%clk 0:01:06.1]} 38... fxg3
{[%clk 0:00:02.9]} 39. Rad1 {[%clk 0:00:53.1]} 39... Nb2 {[%clk 0:00:02.2]} 40.
R3d2 {[%clk 0:00:51.9]} 40... Rxd2 {[%clk 0:00:02.3]} 41. Rxd2 {[%clk
0:00:52.8]} 41... Nc4 {[%clk 0:00:02.2]} 42. Rg2 {[%clk 0:00:53.1]} 42... Ke6
{[%clk 0:00:01.8]} 43. Rxg3 {[%clk 0:00:53.6]} 43... Kf5 {[%clk 0:00:02.7]} 44.
Kg2 {[%clk 0:00:51.2]} 44... a5 {[%clk 0:00:02.7]} 45. b5 {[%clk 0:00:49.8]}
45... Re8 {[%clk 0:00:02.7]} 46. Kf2 {[%clk 0:00:48.9]} 1-0

[Event "Early-Titled-Tuesday-Blitz-December-26-2023"]
[Site "Chess.com"]
[Date "2023.12.26"]
[Round "2"]
[White "stollenmonster"]
[Black "sheldons73tshirt"]
[Result "1-0"]
[WhiteElo "2923"]
[BlackElo "2595"]
[TimeControl "180+1"]
[EndTime "8:17:12 PST"]
[Termination "stollenmonster won on time"]

1. e4 {[%clk 0:03:00.9]} 1... c6 {[%clk 0:02:59.3]} 2. d4 {[%clk 0:03:00.7]}
2... d5 {[%clk 0:02:59.4]} 3. e5 {[%clk 0:03:00.9]} 3... Bf5 {[%clk 0:02:59.1]}
4. Ne2 {[%clk 0:03:01.4]} 4... e6 {[%clk 0:02:49.8]} 5. Ng3 {[%clk 0:03:01.5]}
5... Bg6 {[%clk 0:02:50.3]} 6. h4 {[%clk 0:03:01.7]} 6... h6 {[%clk 0:02:47.9]}
7. h5 {[%clk 0:03:02]} 7... Bh7 {[%clk 0:02:48.3]} 8. Bd3 {[%clk 0:03:02.7]}
8... Bxd3 {[%clk 0:02:48.1]} 9. cxd3 {[%clk 0:03:03.6]} 9... Nd7 {[%clk
0:02:20.3]} 10. Be3 {[%clk 0:03:00.3]} 10... Qa5+ {[%clk 0:02:13.1]} 11. Nc3
{[%clk 0:02:40.4]} 11... Bb4 {[%clk 0:01:50.8]} 12. O-O {[%clk 0:02:38.1]} 12...
Ne7 {[%clk 0:01:41.5]} 13. Nce2 {[%clk 0:02:37.4]} 13... Qd8 {[%clk 0:01:34]}
14. Nf4 {[%clk 0:02:33.2]} 14... O-O {[%clk 0:01:27.7]} 15. Qg4 {[%clk
0:02:30.7]} 15... Kh8 {[%clk 0:01:23.5]} 16. Nh3 {[%clk 0:01:55.2]} 16... c5
{[%clk 0:01:20.5]} 17. dxc5 {[%clk 0:01:52.3]} 17... Bxc5 {[%clk 0:01:13.4]} 18.
d4 {[%clk 0:01:52.5]} 18... Bb6 {[%clk 0:01:13.5]} 19. f4 {[%clk 0:01:46.9]}
19... f5 {[%clk 0:01:00.8]} 20. exf6 {[%clk 0:01:39.7]} 20... Rxf6 {[%clk
0:00:52.3]} 21. f5 {[%clk 0:01:27.6]} 21... Nxf5 {[%clk 0:00:45.9]} 22. Nxf5
{[%clk 0:01:26.8]} 22... Rxf5 {[%clk 0:00:46.8]} 23. Rxf5 {[%clk 0:01:26.9]}
23... exf5 {[%clk 0:00:47]} 24. Qxf5 {[%clk 0:01:27.3]} 24... Nf6 {[%clk
0:00:43.1]} 25. Nf4 {[%clk 0:01:26.2]} 25... Qd7 {[%clk 0:00:36.2]} 26. Qxd7
{[%clk 0:01:21.4]} 26... Nxd7 {[%clk 0:00:36.9]} 27. Nxd5 {[%clk 0:01:21.7]}
27... Rd8 {[%clk 0:00:32.1]} 28. Rf1 {[%clk 0:01:20.5]} 28... Nf8 {[%clk
0:00:20.3]} 29. Nxb6 {[%clk 0:01:09.3]} 29... axb6 {[%clk 0:00:21.2]} 30. d5
{[%clk 0:01:09.6]} 30... Nd7 {[%clk 0:00:20.2]} 31. Bd4 {[%clk 0:00:58.2]} 31...
Kg8 {[%clk 0:00:15.7]} 32. Re1 {[%clk 0:00:57.4]} 32... Nc5 {[%clk 0:00:13.8]}
33. Re5 {[%clk 0:00:49.2]} 33... Nd3 {[%clk 0:00:12.6]} 34. Re7 {[%clk
0:00:45.8]} 34... Rxd5 {[%clk 0:00:11.5]} 35. Rxg7+ {[%clk 0:00:45.9]} 35... Kf8
{[%clk 0:00:12]} 36. Bc3 {[%clk 0:00:46.3]} 36... Nf4 {[%clk 0:00:09.9]} 37.
Rxb7 {[%clk 0:00:44.3]} 37... Ne2+ {[%clk 0:00:10]} 38. Kf2 {[%clk 0:00:44.7]}
38... Nxc3 {[%clk 0:00:10.3]} 39. bxc3 {[%clk 0:00:45.3]} 39... b5 {[%clk
0:00:08.6]} 40. g4 {[%clk 0:00:45.5]} 40... Rc5 {[%clk 0:00:07.3]} 41. Rh7
{[%clk 0:00:37.3]} 41... Rxc3 {[%clk 0:00:04.2]} 42. Rxh6 {[%clk 0:00:37.1]}
42... Rc2+ {[%clk 0:00:04.9]} 43. Kg3 {[%clk 0:00:37.2]} 43... Rxa2 {[%clk
0:00:05.8]} 44. Rb6 {[%clk 0:00:37.1]} 44... Rb2 {[%clk 0:00:05.3]} 45. Kf4
{[%clk 0:00:37.2]} 45... b4 {[%clk 0:00:05.3]} 46. Kg5 {[%clk 0:00:37.4]} 46...
b3 {[%clk 0:00:05.1]} 47. Kg6 {[%clk 0:00:38]} 47... Rg2 {[%clk 0:00:02.9]} 48.
g5 {[%clk 0:00:38.5]} 48... b2 {[%clk 0:00:03.2]} 49. h6 {[%clk 0:00:39]} 1-0

[Event "Early-Titled-Tuesday-Blitz-December-26-2023"]
[Site "Chess.com"]
[Date "2023.12.26"]
[Round "2"]
[White "PabloZarnicki"]
[Black "GeorgMeier"]
[Result "0-1"]
[WhiteElo "2659"]
[BlackElo "3034"]
[TimeControl "180+1"]
[EndTime "8:17:13 PST"]
[Termination "GeorgMeier won by resignation"]

1. e4 {[%clk 0:03:00.9]} 1... e6 {[%clk 0:03:00.4]} 2. d4 {[%clk 0:02:58.9]}
2... d5 {[%clk 0:03:00.9]} 3. exd5 {[%clk 0:02:59.5]} 3... exd5 {[%clk
0:03:00.8]} 4. Nf3 {[%clk 0:03:00.1]} 4... Nf6 {[%clk 0:02:59.7]} 5. Bd3 {[%clk
0:02:58.4]} 5... Bd6 {[%clk 0:02:59.6]} 6. O-O {[%clk 0:02:55.4]} 6... O-O
{[%clk 0:02:59.6]} 7. Bg5 {[%clk 0:02:56]} 7... Bg4 {[%clk 0:02:58.6]} 8. Nbd2
{[%clk 0:02:54.5]} 8... Nbd7 {[%clk 0:02:58.5]} 9. c3 {[%clk 0:02:54.7]} 9... c6
{[%clk 0:02:55]} 10. Qc2 {[%clk 0:02:52.4]} 10... h6 {[%clk 0:02:49.3]} 11. Bh4
{[%clk 0:02:52.4]} 11... Qc7 {[%clk 0:02:49.2]} 12. Bf5 {[%clk 0:02:46]} 12...
Bxf5 {[%clk 0:02:45.5]} 13. Qxf5 {[%clk 0:02:45.6]} 13... g6 {[%clk 0:02:41.7]}
14. Qc2 {[%clk 0:02:41.5]} 14... Rfe8 {[%clk 0:02:40.7]} 15. Rfe1 {[%clk
0:02:41.5]} 15... Kg7 {[%clk 0:02:40.5]} 16. Bg3 {[%clk 0:02:35.8]} 16... Bxg3
{[%clk 0:02:40]} 17. hxg3 {[%clk 0:02:35.7]} 17... h5 {[%clk 0:02:26.8]} 18.
Rxe8 {[%clk 0:02:34.4]} 18... Rxe8 {[%clk 0:02:25.3]} 19. Re1 {[%clk 0:02:34.3]}
19... Rxe1+ {[%clk 0:02:18.6]} 20. Nxe1 {[%clk 0:02:33.2]} 20... Ng4 {[%clk
0:02:18.6]} 21. Ndf3 {[%clk 0:02:24.8]} 21... Ndf6 {[%clk 0:02:18.4]} 22. Qe2
{[%clk 0:02:20.6]} 22... Ne4 {[%clk 0:02:12.1]} 23. Nd3 {[%clk 0:02:19.1]} 23...
Qa5 {[%clk 0:02:12]} 24. a3 {[%clk 0:02:18.5]} 24... Qb5 {[%clk 0:02:11.5]} 25.
Nfe5 {[%clk 0:02:04.1]} 25... Nxe5 {[%clk 0:01:37.4]} 26. dxe5 {[%clk 0:02:05]}
26... Nc5 {[%clk 0:01:35.5]} 27. Nf4 {[%clk 0:01:40.9]} 27... Qxe2 {[%clk
0:01:34.1]} 28. Nxe2 {[%clk 0:01:40.1]} 28... Nd3 {[%clk 0:01:34.1]} 29. b4
{[%clk 0:01:30.7]} 29... Nxe5 {[%clk 0:01:31.6]} 30. a4 {[%clk 0:01:23.9]} 30...
a5 {[%clk 0:01:03.2]} 31. Nd4 {[%clk 0:01:11.7]} 31... Nc4 {[%clk 0:01:01.9]}
32. Nb3 {[%clk 0:01:05]} 32... b6 {[%clk 0:00:55.8]} 33. bxa5 {[%clk 0:01:03.2]}
33... Nxa5 {[%clk 0:00:55.4]} 34. Nd4 {[%clk 0:00:59.7]} 34... Kf6 {[%clk
0:00:54.1]} 35. f4 {[%clk 0:00:58.7]} 35... Ke7 {[%clk 0:00:50.7]} 36. Kf2
{[%clk 0:00:58.3]} 36... Kd6 {[%clk 0:00:42.8]} 37. f5 {[%clk 0:00:58.8]} 37...
Nc4 {[%clk 0:00:37.4]} 38. fxg6 {[%clk 0:00:59]} 38... fxg6 {[%clk 0:00:38.3]}
39. Nb3 {[%clk 0:00:51.5]} 39... c5 {[%clk 0:00:33.4]} 40. Kf3 {[%clk
0:00:41.7]} 40... g5 {[%clk 0:00:33.5]} 41. Ke2 {[%clk 0:00:31.7]} 41... Ke5
{[%clk 0:00:31.4]} 42. Kf3 {[%clk 0:00:30]} 42... Kf5 {[%clk 0:00:31.5]} 43. Ke2
{[%clk 0:00:20.7]} 43... Kg4 {[%clk 0:00:27.9]} 44. Kf2 {[%clk 0:00:21]} 44...
Nd6 {[%clk 0:00:28.1]} 45. a5 {[%clk 0:00:20.6]} 45... Ne4+ {[%clk 0:00:28.2]}
46. Ke3 {[%clk 0:00:20]} 46... bxa5 {[%clk 0:00:28.4]} 47. Nxa5 {[%clk
0:00:20.2]} 47... Nxc3 {[%clk 0:00:26.6]} 48. Nb7 {[%clk 0:00:20.5]} 48... Ne4
{[%clk 0:00:26.4]} 49. Nd8 {[%clk 0:00:17.7]} 49... Kxg3 {[%clk 0:00:26.3]} 50.
Ne6 {[%clk 0:00:17.7]} 50... Kxg2 {[%clk 0:00:24.9]} 0-1